fUSD/lending_fUSD_20250321
["ID","MTS","AMOUNT","RATE_DAILY","PERIOD"]
[356516020,1742590947183,-658.05,0.00047945,120]
[356516021,1742590947218,-500.0,0.00047945,120]
[356516022,1742590947255,-3896.81,0.00047945,120]
[356516023,1742590947290,-500.0,0.00047945,120]
[356516024,1742590947326,-500.0,0.00047945,120]
[356516025,1742590947361,-500.0,0.00047945,120]
[356516026,1742590947402,-500.0,0.00047945,120]
[356516027,1742590947442,-847.72,0.00047945,120]
[356516028,1742590947481,-500.0,0.00047945,120]
[356516029,1742590947519,-1015.21,0.00047945,120]
[356516030,1742590947559,-2407.4,0.00047945,120]
[356516031,1742590947603,-500.0,0.00047945,120]
[356516032,1742590947647,-1413.71,0.00047945,120]
[356516033,1742590947688,-500.0,0.00047945,120]
[356516034,1742590947727,-432.92581324,0.00047945,120]
[356516035,1742590947769,-500.0,0.00047945,120]
[356516036,1742590947807,-775.79,0.00047945,120]
[356516037,1742590947845,-1086.59,0.00047945,120]
[356516038,1742590947881,-500.0,0.00047945,120]
[356516039,1742590947917,-500.0,0.00047945,120]
[356516040,1742590947954,-1133.4,0.00047945,120]
[356516041,1742590947992,-1032.62,0.00047945,120]
[356516042,1742590948028,-500.0,0.00047945,120]
[356516043,1742590948064,-2218.79,0.00047945,120]
[356516044,1742590948098,-1504.83,0.00047945,120]
[356516045,1742590948136,-1855.87,0.00047945,120]
[356516046,1742590948172,-500.0,0.00047945,120]
[356516047,1742590948206,-500.0,0.00047945,120]
[356516048,1742590948243,-500.0,0.00047945,120]
[356516049,1742590948289,-828.32,0.00047945,120]
[356516050,1742590948323,-4212.61,0.00047945,120]
[356516051,1742590948355,-1776.45,0.00047945,120]
[356516052,1742590948391,-573.44,0.00047945,120]
[356516053,1742590948427,-500.0,0.00047945,120]
[356516054,1742590948462,-10277.33,0.00047945,120]
[356516055,1742590948504,-827.23,0.00047945,120]
[356516056,1742590948540,-1126.9,0.00047945,120]
[356516057,1742590948581,-899.51,0.00047945,120]
[356516058,1742590948620,-1834.73,0.00047945,120]
[356516059,1742590948659,-500.0,0.00047945,120]
[356516060,1742590948695,-500.0,0.00047945,120]
[356516061,1742590948734,-500.0,0.00047945,120]
[356516062,1742590948780,-1042.62,0.00047945,120]
[356516063,1742590948823,-587.99936204,0.00047945,120]
[356516064,1742590948867,-2370.96,0.00047945,120]
[356516065,1742590948908,-3771.83,0.00047945,120]
[356516066,1742590948945,-500.0,0.00047945,120]
[356516067,1742590948982,-673.02,0.00047945,120]
[356516068,1742590949020,-1010.34,0.00047945,120]
[356516069,1742590949056,-500.0,0.00047945,120]
[356516070,1742590949092,-1229.02,0.00047945,120]
[356516071,1742590949132,-7320.96,0.00047945,120]
[356516072,1742590949172,-1367.01,0.00047945,120]
[356516073,1742590949209,-1102.62,0.00047945,120]
[356516074,1742590949245,-634.03,0.00047945,120]
[356516075,1742590949282,-500.0,0.00047945,120]
[356516076,1742590949319,-875.96,0.00047945,120]
[356516077,1742590949354,-2379.92,0.00047945,120]
[356516078,1742590949392,-632.77,0.00047945,120]
[356516079,1742590949428,-500.0,0.00047945,120]
[356516080,1742590949465,-1590.67,0.00047945,120]
[356516081,1742590949504,-2243.09,0.00047945,120]
[356516082,1742590949540,-500.0,0.00047945,120]
[356516083,1742590949576,-1314.42,0.00047945,120]
[356516084,1742590949612,-2195.2,0.00047945,120]
[356516085,1742590949649,-500.0,0.00047945,120]
[356516086,1742590949684,-542.35,0.00047945,120]
[356516087,1742590949720,-511.32377208,0.00047945,120]
[356516088,1742590949758,-751.58,0.00047945,120]
[356516089,1742590949794,-1473.81,0.00047945,120]
[356516090,1742590949829,-500.0,0.00047945,120]
[356516091,1742590949865,-500.0,0.00047945,120]
[356516092,1742590949901,-718.58,0.00047945,120]
[356516093,1742590949938,-500.0,0.00047945,120]
[356516094,1742590949977,-613.62,0.00047945,120]
[356516095,1742590950254,-500.0,0.00047945,120]
[356516096,1742590950295,-733.08,0.00047945,120]
[356516097,1742590950335,-716.19,0.00047945,120]
[356516098,1742590950374,-507.09167642,0.00047945,120]
[356516099,1742590950413,-500.0,0.00047945,120]
[356516100,1742590950452,-500.0,0.00047945,120]
[356516101,1742590950492,-505.89,0.00047945,120]
[356516103,1742590950532,-500.0,0.00047945,120]
[356516104,1742590950575,-500.0,0.00047945,120]
[356516105,1742590950614,-695.76,0.00047945,120]
[356516106,1742590950653,-6397.29,0.00047945,120]
[356516107,1742590950691,-2097.86,0.00047945,120]
[356516108,1742590950729,-1632.48,0.00047945,120]
[356516109,1742590950765,-958.6,0.00047945,120]
[356516110,1742590950801,-509.80670424,0.00047945,120]
[356516111,1742590950840,-730.44,0.00047945,120]
[356516112,1742590950876,-843.94,0.00047945,120]
[356516113,1742590950913,-500.0,0.00047945,120]
[356516114,1742590950964,-500.0,0.00047945,120]
[356516115,1742590951004,-2646.71,0.00047945,120]
[356516116,1742590951045,-500.0,0.00047945,120]
[356516117,1742590951089,-500.0,0.00047945,120]
[356516118,1742590951133,-723.47,0.00047945,120]
[356516119,1742590951179,-510.71847628,0.00047945,120]
[356516120,1742590951221,-5764.63,0.00047945,120]
[356516121,1742590951261,-1046.09,0.00047945,120]
[356516122,1742590951301,-500.0,0.00047945,120]
[356516123,1742590951341,-500.0,0.00047945,120]
[356516124,1742590951381,-538.05,0.00047945,120]
[356516125,1742590951422,-500.0,0.00047945,120]
[356516126,1742590951461,-604.26,0.00047945,120]
[356516127,1742590951499,-500.0,0.00047945,120]
[356516128,1742590951536,-506.97,0.00047945,120]
[356516129,1742590951573,-2895.4,0.00047945,120]
[356516130,1742590951611,-500.0,0.00047945,120]
[356516131,1742590951650,-500.0,0.00047945,120]
[356516132,1742590951688,-500.0,0.00047945,120]
[356516133,1742590951726,-500.0,0.00047945,120]
[356516134,1742590951764,-500.0,0.00047945,120]
[356516135,1742590951802,-500.0,0.00047945,120]
[356516136,1742590951840,-522.71,0.00047945,120]
[356516137,1742590951876,-626.77,0.00047945,120]
[356516138,1742590951912,-2572.21,0.00047945,120]
[356516139,1742590951948,-664.93,0.00047945,120]
[356516140,1742590951985,-3733.51,0.00047945,120]
[356516141,1742590952021,-500.0,0.00047945,120]
[356516142,1742590952057,-500.0,0.00047945,120]
[356516143,1742590952095,-787.13,0.00047945,120]
[356516144,1742590952136,-500.0,0.00047945,120]
[356516145,1742590952176,-830.66,0.00047945,120]
[356516146,1742590952216,-1494.48,0.00047945,120]
[356516147,1742590952254,-500.0,0.00047945,120]
[356516148,1742590952290,-2056.83,0.00047945,120]
[356516149,1742590952326,-500.0,0.00047945,120]
[356516150,1742590952362,-500.0,0.00047945,120]
[356516151,1742590952399,-500.0,0.00047945,120]
[356516152,1742590952434,-500.0,0.00047945,120]
[356516153,1742590952470,-500.0,0.00047945,120]
[356516154,1742590952506,-500.0,0.00047945,120]
[356516155,1742590952543,-500.0,0.00047945,120]
[356516156,1742590952581,-1371.2,0.00047945,120]
[356516157,1742590952618,-988.17,0.00047945,120]
[356516158,1742590952655,-3991.25,0.00047945,120]
[356516159,1742590952691,-500.0,0.00047945,120]
[356516160,1742590952727,-500.0,0.00047945,120]
[356516161,1742590952762,-740.17,0.00047945,120]
[356516162,1742590952795,-500.0,0.00047945,120]
[356516163,1742590952829,-644.49,0.00047945,120]
[356516164,1742590952862,-500.0,0.00047945,120]
[356516165,1742590952896,-500.0,0.00047945,120]
[356516166,1742590952931,-681.51,0.00047945,120]
[356516167,1742590952967,-2679.63,0.00047945,120]
[356516168,1742590953002,-547.38,0.00047945,120]
[356516169,1742590953039,-500.0,0.00047945,120]
[356516170,1742590953078,-500.0,0.00047945,120]
[356516171,1742590953118,-500.0,0.00047945,120]
[356516172,1742590953158,-500.0,0.00047945,120]
[356516173,1742590953198,-500.0,0.00047945,120]
[356516174,1742590953239,-8207.86,0.00047945,120]
[356516175,1742590953278,-500.0,0.00047945,120]
[356516176,1742590953315,-500.0,0.00047945,120]
[356516177,1742590953354,-511.67231386,0.00047945,120]
[356516178,1742590953392,-559.49,0.00047945,120]
[356516179,1742590953433,-410.69292063,0.00047945,120]
[356516180,1742590953469,-500.0,0.00047945,120]
[356516181,1742590953511,-664.67,0.00047945,120]
[356516182,1742590953548,-500.0,0.00047945,120]
[356516183,1742590953586,-5272.17,0.00047945,120]
[356516184,1742590953625,-500.0,0.00047945,120]
[356516185,1742590953666,-989.36,0.00047945,120]
[356516186,1742590953703,-500.0,0.00047945,120]
[356516187,1742590953739,-500.0,0.00047945,120]
[356516188,1742590953776,-1000.0,0.00047945,120]
[356516189,1742590953813,-500.0,0.00047945,120]
[356516190,1742590953850,-857.61,0.00047945,120]
[356516191,1742590953887,-500.0,0.00047945,120]
[356516192,1742590953924,-500.0,0.00047945,120]
[356516193,1742590953963,-500.0,0.00047945,120]
[356516194,1742590953999,-500.0,0.00047945,120]
[356516195,1742590954034,-500.0,0.00047945,120]
[356516196,1742590954071,-500.0,0.00047945,120]
[356516197,1742590954107,-500.0,0.00047945,120]
[356516198,1742590954149,-1518.33,0.00047945,120]
[356516199,1742590954185,-626.72,0.00047945,120]
[356516200,1742590954223,-748.42,0.00047945,120]
[356516201,1742590954461,-500.0,0.00047945,120]
[356516202,1742590954505,-500.0,0.00047945,120]
[356516203,1742590954546,-500.0,0.00047945,120]
[356516204,1742590954586,-500.0,0.00047945,120]
[356516205,1742590954624,-551.68,0.00047945,120]
[356516206,1742590954660,-908.94,0.00047945,120]
[356516207,1742590954697,-500.0,0.00047945,120]
[356516208,1742590954734,-500.0,0.00047945,120]
[356516209,1742590954772,-522.96,0.00047945,120]
[356516210,1742590954811,-500.0,0.00047945,120]
[356516211,1742590954854,-540.84849558,0.00047945,120]
[356516212,1742590954900,-500.0,0.00047945,120]
[356516213,1742590954954,-803.98,0.00047945,120]
[356516214,1742590955001,-500.0,0.00047945,120]
[356516215,1742590955049,-521.05410437,0.00047945,120]
[356516216,1742590955096,-500.0,0.00047945,120]
[356516217,1742590955146,-500.18065918,0.00047994,40]
[356516218,1742590955191,-751.9,0.00047999,120]
[356516219,1742590955227,-751.9,0.00047999,120]
[356516220,1742590955264,-751.9,0.00047999,120]
[356516221,1742590955303,-751.9,0.00047999,120]
[356516222,1742590955339,-751.9,0.00047999,120]
[356516223,1742590955377,-751.92862268,0.00047999,120]
[356516224,1742590955414,-671.31,0.00047999,120]
[356516225,1742590955452,-671.31,0.00047999,120]
[356516226,1742590955490,-671.31,0.00047999,120]
[356516227,1742590955528,-671.31,0.00047999,120]
[356516228,1742590955566,-671.31,0.00047999,120]
[356516229,1742590955604,-671.38776731,0.00047999,120]
[356516230,1742590955644,-2533.5,0.00047999,120]
[356516231,1742590955683,-2533.5,0.00047999,120]
[356516232,1742590955721,-2533.5,0.00047999,120]
[356516233,1742590955760,-2533.5,0.00047999,120]
[356516234,1742590955799,-2533.54647597,0.00047999,120]
[356516235,1742590955838,-1623.31,0.00047999,120]
[356516236,1742590955879,-1623.31,0.00047999,120]
[356516237,1742590955919,-1623.31,0.00047999,120]
[356516238,1742590955960,-1623.31,0.00047999,120]
[356516239,1742590956000,-1623.48556314,0.00047999,120]
[356516240,1742590956041,-680.94,0.00047999,120]
[356516241,1742590956080,-680.94,0.00047999,120]
[356516242,1742590956121,-680.94,0.00047999,120]
[356516243,1742590956164,-680.94,0.00047999,120]
[356516244,1742590956203,-681.01689261,0.00047999,120]
[356516245,1742590956248,-50000.0,0.00048,48]
[356516246,1742590956288,-161.0,0.00048,120]
[356516247,1742590956329,-747293.03359004,0.00048,120]
[356516248,1742590960075,1263.0,0.00031279,90]
[356516249,1742590960114,1263.0,0.00031279,90]
[356516250,1742590960289,1263.0,0.00031279,90]
[356516251,1742590960367,1263.0,0.00031279,90]
[356516252,1742590960407,1500.0,0.00031279,30]
[356516253,1742590960528,1500.0,0.00031279,30]
[356516254,1742590960561,1500.0,0.00031279,30]
[356516255,1742590960641,400.98505961,0.00031279,30]
[356516284,1742591431458,-216.01,0.00026849,2]
[356516285,1742591431467,-205.0,0.000313,30]
[356516286,1742591431476,-154.56063052,0.000313,30]
[356516287,1742591431511,-50.43936948,0.000313,30]
[356516288,1742591431520,-205.0,0.000313,30]
[356516289,1742591431529,-251.13063052,0.00038283,30]
[356516837,1742591437361,-357.12,0.00038283,30]
[356516839,1742591437372,-27.25862274,0.00043269,2]
[356516840,1742591437578,-574.74137726,0.00043269,2]
[356516841,1742591437587,-150.0,0.00044918,2]
[356516842,1742591437597,-158.0,0.00045,90]
[356516843,1742591437607,-114.75602317,0.00045127,2]
[356516844,1742591437618,-2856.52397683,0.00045127,2]
[356516845,1742591437628,-1000.0,0.00045157,2]
[356516846,1742591437649,-250.0,0.00045176,2]
[356516847,1742591437659,-163.89,0.00045186,2]
[356516848,1742591437668,-150.0,0.00045333,2]
[356516849,1742591437678,-185.11,0.00045334,2]
[356516850,1742591437688,-602.0,0.00045533,2]
[356516851,1742591437697,-158.0,0.00045685,90]
[356516852,1742591437707,-255.0762,0.000457,2]
[356516853,1742591437716,-1115.49,0.000458,2]
[356516854,1742591437725,-206.64992194,0.000459,10]
[356516855,1742591437736,-214.83741635,0.00045923,2]
[356516856,1742591437745,-1000.0,0.00045924,2]
[356516857,1742591437755,-1000.0,0.00045924,2]
[356516858,1742591437764,-1000.0,0.00045924,2]
[356516859,1742591437773,-1000.0,0.00045924,2]
[356516860,1742591437785,-1000.0,0.00045924,2]
[356516861,1742591437794,-1000.0,0.00045924,2]
[356516862,1742591437803,-1000.0,0.00045924,2]
[356516863,1742591437813,-1000.0,0.00045924,2]
[356516864,1742591437822,-1000.0,0.00045924,2]
[356516865,1742591437831,-1000.0,0.00045924,2]
[356516866,1742591437841,-1000.0,0.00045924,2]
[356516867,1742591437850,-808.95352512,0.00045924,2]
[356516871,1742591439885,-714.5,0.00038283,30]
[356516872,1742591439895,-191.04647488,0.00045924,2]
[356516873,1742591439904,-776.95618226,0.00045924,2]
[356516890,1742591442542,-223.04381774,0.00045924,2]
[356516891,1742591442552,-1000.0,0.00045924,2]
[356516892,1742591442561,-919.69594357,0.00045924,2]
[356516893,1742591443185,-80.30405643,0.00045924,2]
[356516894,1742591443194,-175.07116941,0.00045924,2]
[356516895,1742591443384,-0.33201716,0.00045924,2]
[356516896,1742591443435,-824.59681343,0.00045924,2]
[356516897,1742591443444,-1000.0,0.00045924,2]
[356516898,1742591443454,-1000.0,0.00045924,2]
[356516899,1742591443463,-1000.0,0.00045924,2]
[356516900,1742591443472,-1000.0,0.00045924,2]
[356516901,1742591443481,-1000.0,0.00045924,2]
[356516903,1742591443490,-1000.0,0.00045924,2]
[356516905,1742591443499,-1000.0,0.00045924,2]
[356516907,1742591443508,-1000.0,0.00045924,2]
[356516909,1742591443517,-1000.0,0.00045924,2]
[356516911,1742591443526,-1000.0,0.00045924,2]
[356516913,1742591443535,-1000.0,0.00045924,2]
[356516915,1742591443544,-1000.0,0.00045924,2]
[356516917,1742591443553,-1000.0,0.00045924,2]
[356516919,1742591443563,-617.23153506,0.00045924,2]
[356516921,1742591443572,-323.19048867,0.00045999,30]
[356516923,1742591443581,-194.90772564,0.00046,2]
[356516924,1742591443590,-155.84,0.00046016,2]
[356516925,1742591443600,-214.24,0.00046019,2]
[356516926,1742591443609,-154.58,0.00046055,2]
[356516927,1742591443619,-1000.0,0.000461,7]
[356516928,1742591443627,-214.24,0.00046113,2]
[356516929,1742591443636,-150.0,0.00046118,2]
[356516930,1742591443646,-214.24,0.00046208,2]
[356516931,1742591443655,-448.8729,0.0004627,2]
[356516932,1742591443665,-12734.60032417,0.0004627,2]
[356516936,1742591445592,-8430.0,0.0004627,2]
[356516939,1742591643018,321.48617996,0.0002,2]
[356516941,1742591800933,-356.5,0.00038283,30]
[356516942,1742591800959,-550.81,0.000399,120]
[356516943,1742591800984,-550.81,0.0004,120]
[356516944,1742591801010,-550.81,0.0004,120]
[356516945,1742591801034,-550.81,0.0004,120]
[356516946,1742591801058,-550.81,0.0004,120]
[356516947,1742591806536,-550.81,0.00041,120]
[356516948,1742591806566,-5550.0,0.000416,5]
[356516949,1742591806595,-208.21483434,0.000449,10]
[356516950,1742591806621,-150.0,0.00045,90]
[356516951,1742591818169,589.19,0.00043551,2]
[356516961,1742591908955,154.46,0.000335,31]
[356516962,1742591909012,154.46,0.000398,31]
[356516963,1742591909077,154.46,0.000398,31]
[356516967,1742591968947,205.21,0.00026849,2]
[356516968,1742591969171,205.21,0.00032646,2]
[356516969,1742591969423,205.21,0.00038443,2]
[356516970,1742591969624,205.21,0.00044239,2]
[356516977,1742592229493,16667.56516566,0.00045,2]
[356516978,1742592361550,430.73435215,0.00031185,2]
[356516979,1742592364831,208.21483428,0.000319,6]
[356516980,1742592365394,208.21483428,0.00037173,7]
[356516981,1742592367725,4717.01096559,0.000199,3]
[356516990,1742592487514,7077.22060037,0.0004,2]
[356516991,1742592490900,558.05,0.0004,120]
[356517018,1742592515428,1881.99999948,0.00025,7]
[356517048,1742592531997,208.21483428,0.000319,6]
[356517049,1742592532382,208.21483428,0.00038344,8]
[356517054,1742592579292,558.05,0.0004,120]
[356517055,1742592594239,235.42542502,0.00031185,2]
[356517062,1742592631625,-152.0,0.00031285,30]
[356517064,1742592631635,-205.0,0.00031285,30]
[356517065,1742592631644,-142.0265684,0.00031285,90]
[356517066,1742592631655,-259.28,0.00031285,90]
[356517067,1742592631685,-1402.05959024,0.00031285,90]
[356517068,1742592631747,-547.59370789,0.00031285,90]
[356517069,1742592631758,-648.65481535,0.00031285,30]
[356517070,1742592631810,-707.11548347,0.00031285,30]
[356517071,1742592631821,-54.70196145,0.00031285,30]
[356517072,1742592631832,-760.29528517,0.00031285,120]
[356517085,1742592637702,-279.2989725,0.00031285,120]
[356517113,1742592639845,-489.79144317,0.00031285,120]
[356517114,1742592639856,-2001.97654896,0.00031285,30]
[356517115,1742592639865,-1277.94657062,0.00031285,120]
[356517116,1742592639877,-750.7590522,0.00031285,120]
[356517117,1742592639887,-930.18242162,0.00031285,30]
[356517123,1742592642746,-972.02850939,0.00031285,30]
[356517124,1742592642755,-159.41512434,0.00031285,30]
[356517125,1742592642766,-1217.75204607,0.00031285,90]
[356517126,1742592642776,-156.47581189,0.00031285,30]
[356517127,1742592642785,-1178.27481699,0.00031285,30]
[356517128,1742592642794,-1894.33844255,0.00031285,30]
[356517129,1742592642803,-3869.58963463,0.00031285,120]
[356517130,1742592642813,-1460.55775971,0.00031285,30]
[356517132,1742592642822,-1657.58517661,0.00031285,120]
[356517133,1742592642832,-2191.78031791,0.00031285,30]
[356517134,1742592642843,-558.05,0.00042,120]
[356517135,1742592642852,-558.05,0.00043,120]
[356517136,1742592642862,-154.32099,0.0004409,75]
[356517137,1742592642871,-150.0,0.0004419,2]
[356517138,1742592642880,-154.32099,0.0004436,76]
[356517139,1742592642889,-208.21483428,0.00044789,10]
[356517140,1742592642898,-179.46,0.00044976,120]
[356517141,1742592642908,-154.32099,0.0004498,77]
[356517142,1742592642917,-151.0,0.00045,90]
[356517143,1742592642926,-1000.0,0.00045045,2]
[356517144,1742592642935,-150.0,0.00045168,2]
[356517145,1742592642944,-250.0,0.00045278,2]
[356517146,1742592642953,-185.11,0.00045284,2]
[356517147,1742592642963,-163.89,0.00045386,2]
[356517148,1742592642972,-152.87,0.00045559,2]
[356517149,1742592642981,-154.32099,0.000456,78]
[356517150,1742592642990,-152.87,0.00045673,2]
[356517151,1742592642999,-151.0,0.00045685,90]
[356517152,1742592643008,-150.0,0.00045708,120]
[356517153,1742592643017,-152.87,0.00045787,2]
[356517154,1742592643026,-589.19,0.00045814,2]
[356517155,1742592643035,-150.0,0.00045865,2]
[356517156,1742592643044,-152.87,0.000459,2]
[356517157,1742592643054,-152.87,0.00046014,2]
[356517158,1742592643063,-152.87,0.00046128,2]
[356517159,1742592643071,-154.32099,0.0004623,80]
[356517160,1742592643080,-152.87,0.00046242,2]
[356517161,1742592643090,-152.87,0.00046356,2]
[356517162,1742592643099,-237.146,0.00046356,76]
[356517164,1742592643108,-700.0,0.00046365,2]
[356517165,1742592643117,-1195.95222045,0.0004637,15]
[356517167,1742592643126,-2244.5651,0.00046375,2]
[356517169,1742592643135,-545.1057,0.00046375,2]
[356517171,1742592643145,-515.31786214,0.00046428,2]
[356517173,1742592643153,-168.83,0.00046433,2]
[356517175,1742592643162,-787.0,0.00046453,2]
[356517177,1742592643171,-888.804,0.00046453,2]
[356517179,1742592643180,-1029.4,0.00046453,2]
[356517181,1742592643189,-216.189,0.00046453,2]
[356517183,1742592643198,-403.564,0.00046453,2]
[356517185,1742592643207,-572.0,0.00046453,2]
[356517187,1742592643216,-267.8236,0.00046464,2]
[356517189,1742592643225,-1122.1571,0.00046464,2]
[356517191,1742592643234,-323.19048867,0.00046464,30]
[356517193,1742592643243,-42802.30720042,0.00046465,38]
[356517195,1742592643251,-176.94943494,0.00046465,38]
[356517197,1742592643260,-200.68233688,0.00046465,15]
[356517199,1742592643269,-66113.9464,0.00046465,2]
[356517201,1742592643278,-500.0,0.00046465,2]
[356517203,1742592643287,-269.3654,0.00046465,2]
[356517205,1742592643296,-152.87,0.0004647,2]
[356517207,1742592643305,-1239.26918216,0.00046473,18]
[356517209,1742592643314,-88888.0,0.00046475,120]
[356517211,1742592643323,-603.71649261,0.00046564,120]
[356517212,1742592643332,-293.36078273,0.00046564,120]
[356517215,1742592643341,-500.0,0.00046564,120]
[356517217,1742592643351,-500.0,0.00046564,120]
[356517218,1742592643361,-279.4354732,0.00046564,120]
[356517220,1742592643370,-1195.95222042,0.00046564,15]
[356517222,1742592643379,-231392.444225,0.00046565,3]
[356517224,1742592643388,-152.05,0.00046565,2]
[356517226,1742592643397,-151.62201713,0.00046573,10]
[356517228,1742592643406,-160.65630788,0.00046573,10]
[356517229,1742592643415,-161.22753673,0.00046573,10]
[356517230,1742592643424,-307.99140663,0.00046573,10]
[356517231,1742592643434,-500.0,0.00046575,120]
[356517232,1742592643443,-1058.149737,0.00046575,120]
[356517233,1742592643452,-500.0,0.00046575,120]
[356517234,1742592643462,-830.958807,0.00046575,120]
[356517235,1742592643471,-500.0,0.00046575,120]
[356517236,1742592643480,-500.0,0.00046575,120]
[356517237,1742592643489,-159.08336,0.00046575,120]
[356517238,1742592643498,-160.43033,0.00046575,120]
[356517239,1742592643507,-500.0,0.00046575,120]
[356517240,1742592643516,-500.0,0.00046575,120]
[356517241,1742592643525,-500.0,0.00046575,120]
[356517242,1742592643535,-500.0,0.00046575,120]
[356517243,1742592643543,-613.54,0.00046575,120]
[356517244,1742592643553,-500.0,0.00046575,120]
[356517245,1742592643562,-585.21,0.00046575,120]
[356517246,1742592643571,-779.96,0.00046575,120]
[356517247,1742592643580,-500.0,0.00046575,120]
[356517248,1742592643599,-588.11,0.00046575,120]
[356517249,1742592643609,-500.0,0.00046575,120]
[356517250,1742592643618,-632.98,0.00046575,120]
[356517251,1742592643627,-500.0,0.00046575,120]
[356517252,1742592643637,-500.0,0.00046575,120]
[356517253,1742592643647,-751.9,0.00046575,120]
[356517254,1742592643657,-751.9,0.00046575,120]
[356517255,1742592643668,-751.9,0.00046575,120]
[356517256,1742592643678,-751.9,0.00046575,120]
[356517257,1742592643687,-500.0,0.00046575,120]
[356517258,1742592643697,-500.0,0.00046575,120]
[356517259,1742592643706,-500.0,0.00046575,120]
[356517260,1742592643717,-503.3034106,0.00046575,120]
[356517261,1742592643726,-500.0,0.00046575,120]
[356517262,1742592643735,-500.0,0.00046575,120]
[356517263,1742592643746,-519.74469399,0.00046575,120]
[356517264,1742592643755,-500.0,0.00046575,120]
[356517265,1742592643766,-1280.59,0.00046575,10]
[356517266,1742592643776,-500.0,0.00046575,120]
[356517267,1742592643786,-214.78895479,0.00046575,120]
[356517268,1742592643795,-500.0,0.00046575,120]
[356517269,1742592643806,-494.67504929,0.00046575,120]
[356517270,1742592643816,-500.0,0.00046575,120]
[356517271,1742592643825,-520.27787569,0.00046575,120]
[356517272,1742592643835,-594.75548647,0.00046575,120]
[356517273,1742592643846,-346.83153121,0.00046575,120]
[356517274,1742592643858,-500.0,0.00046575,120]
[356517275,1742592643868,-584.31,0.00046575,120]
[356517276,1742592643878,-500.0,0.00046575,120]
[356517277,1742592643888,-556.79,0.00046575,120]
[356517278,1742592643897,-513.91105853,0.00046575,120]
[356517279,1742592643907,-500.0,0.00046575,120]
[356517280,1742592643917,-529.08345037,0.00046575,120]
[356517281,1742592643927,-500.0,0.00046575,120]
[356517282,1742592643936,-500.0,0.00046575,120]
[356517283,1742592643946,-500.0,0.00046575,120]
[356517284,1742592643955,-500.0,0.00046575,120]
[356517285,1742592643965,-511.69371922,0.00046575,120]
[356517286,1742592643975,-500.0,0.00046575,120]
[356517287,1742592643984,-206.69400802,0.00046575,120]
[356517288,1742592643993,-500.0,0.00046575,120]
[356517289,1742592644003,-583.05,0.00046575,120]
[356517290,1742592644012,-500.0,0.00046575,120]
[356517291,1742592644022,-500.0,0.00046575,120]
[356517292,1742592644031,-500.0,0.00046575,120]
[356517293,1742592644041,-500.0,0.00046575,120]
[356517294,1742592644050,-500.0,0.00046575,120]
[356517295,1742592644060,-500.0,0.00046575,120]
[356517296,1742592644069,-500.0,0.00046575,120]
[356517297,1742592644079,-500.0,0.00046575,120]
[356517298,1742592644088,-500.0,0.00046575,120]
[356517299,1742592644098,-428.52687343,0.00046575,120]
[356517300,1742592644107,-500.0,0.00046575,120]
[356517301,1742592644117,-500.0,0.00046575,120]